bitfinex-derivatives/quotes_ETHF0:USTF0_20250314
["timestamp","ask_amount","ask_price","bid_price","bid_amount"]
[1741972065603,0.708,1935.9,1935.6,3.2078]
[1741972065808,1.03325,1935.6,1935.5,1.3386]
[1741972067402,1.0333,1935.5,1935.4,3.2078]
[1741972067701,2.369,1935.5,1935.4,3.2078]
[1741972068808,1.03341,1935.3,1935.2,4.5464]
[1741972069204,1.03341,1935.3,1935.2,5.57986]
[1741972070312,1.3357,1935.5,1935.2,4.5464]
[1741972070508,1.3357,1935.5,1935.4,3.2078]
[1741972070812,1.0333,1935.5,1935.4,3.2078]
[1741972071203,1.0333,1935.5,1935.4,4.6307]
[1741972071514,1.0333,1935.5,1935.4,5.66405]
[1741972072108,1.0333,1935.5,1935.4,4.6307]
[1741972073299,1.0333,1935.5,1935.4,5.66405]
[1741972073811,1.0333,1935.5,1935.4,4.6307]
[1741972074007,1.0333,1935.5,1935.4,5.66405]
[1741972074611,1.0333,1935.5,1935.4,4.6307]
[1741972075303,1.01516769,1935.8,1935.4,9.41205]
[1741972075608,6.9558,1936.4,1935.9,1.03306]
[1741972075808,1.04074914,1936.1,1936.0,1.03303]
[1741972076009,1.04074914,1936.1,1936.0,1.72193]
[1741972076511,1.04071914,1936.1,1936.0,0.6889]
[1741972077711,1.04071914,1936.1,1936.0,1.72193]
[1741972077915,0.00773914,1936.1,1936.0,1.72193]
[1741972078713,1.04071914,1936.1,1936.0,1.72193]
[1741972079515,0.00773914,1936.1,1936.0,1.72193]
[1741972080111,1.04071914,1936.1,1936.0,1.72193]
[1741972080805,0.00773914,1936.1,1936.0,1.72193]
[1741972083111,5.974,1936.9,1936.0,1.72193]
[1741972083331,1.4307,1936.7,1936.3,3.2078]
[1741972083509,1.03258,1936.9,1936.8,1.03259]
[1741972083708,1.03248,1937.1,1937.0,1.03249]
[1741972083911,3.2078,1938.0,1936.9,6.9548]
[1741972084208,2.58019,1937.8,1937.4,3.2078]
[1741972084514,1.03232,1937.4,1937.3,0.00773914]
[1741972084718,1.03229,1937.4,1937.3,0.00773914]
[1741972086210,2.37165,1937.5,1937.3,0.00773914]
[1741972086418,1.03225,1937.5,1937.3,1.04004914]
[1741972086618,1.03225,1937.5,1937.3,0.00773914]
[1741972086619,1.03228,1937.5,1937.3,0.00773914]
[1741972086817,0.00773914,1937.6,1937.3,0.00773914]
[1741972086818,0.00773914,1937.6,1937.4,3.2078]
[1741972087118,3.62924547,1938.5,1937.5,8.44060169]
[1741972087319,1.03196,1938.1,1938.0,3.2078]
[1741972088304,1.36485027,1938.2,1937.8,3.2078]
[1741972088510,1.03202,1937.9,1937.8,3.2078]
[1741972089006,3.94463027,1938.2,1937.8,4.23987]
[1741972089205,1.36485027,1938.2,1937.8,3.2078]
[1741972089416,1.032,1938.0,1937.8,4.23987]
[1741972090828,5.974,1939.0,1937.9,14.76503169]
[1741972091022,5.974,1939.0,1938.7,4.23936]
[1741972091023,1.03151,1938.9,1938.7,4.23936]
[1741972091314,1.03154,1938.8,1938.7,3.2078]
[1741972091517,1.03152,1938.9,1938.7,4.23938]
[1741972091708,2.44896,1939.0,1938.8,1.03151]
[1741972091915,1.3578,1939.2,1938.7,3.21553914]
[1741972092108,1.3578,1939.2,1938.7,6.96053914]
[1741972092109,2.7753,1939.2,1938.7,6.96053914]
[1741972092316,1.03154,1938.8,1938.7,6.96053914]
[1741972092520,1.03154,1938.8,1938.7,3.21553914]
[1741972093017,1.03142,1939.1,1938.9,1.03149]
[1741972093216,1.03148,1939.0,1938.9,3.2078]
[1741972093518,1.0315,1938.9,1938.8,3.2078]
[1741972093720,1.03147,1939.0,1938.8,4.23932]
[1741972094015,1.3288,1939.1,1938.8,3.2078]
[1741972094418,1.03147,1939.0,1938.8,4.23932]
[1741972095018,1.03145,1939.0,1938.8,3.2078]
[1741972095216,1.03139,1939.1,1938.9,1.03143]
[1741972095419,0.698,1939.2,1938.9,1.4155]
[1741972095619,2.36022,1939.1,1938.9,2.44697]
[1741972095824,1.03143,1939.0,1938.9,1.4155]
[1741972096317,1.03149,1938.9,1938.8,3.2078]
[1741972096621,1.03146,1939.0,1938.9,1.3794]
[1741972097218,1.3288,1939.1,1938.9,2.41089]
[1741972097424,3.912,1939.5,1939.0,3.2078]
[1741972097626,2.4366,1939.3,1939.1,2.41075]
[1741972097915,7.654,1939.5,1939.2,2.41073]
[1741972097916,3.912,1939.5,1939.2,2.41073]
[1741972098121,2.57745,1939.9,1939.2,4.5872]
[1741972098318,1.03117,1939.5,1939.4,3.2078]
[1741972098517,1.03117,1939.5,1939.4,4.5872]
[1741972098715,7.19055,1939.9,1939.4,4.5872]
[1741972098914,1.4053,1939.9,1939.4,5.61839]
[1741972099115,1.03117,1939.5,1939.4,5.61839]
[1741972099524,1.03117,1939.5,1939.4,4.5872]
[1741972100025,1.03127,1939.3,1939.2,9.06781169]
[1741972100326,1.03127,1939.3,1939.2,7.22671169]
[1741972101417,2.45037,1939.3,1939.2,5.86001169]
[1741972101715,1.03138,1939.1,1939.0,3.2078]
[1741972101920,1.03138,1939.1,1939.0,4.5745]
[1741972104020,1.03154,1938.8,1938.7,0.00773914]
[1741972104223,1.03154,1938.8,1938.7,1.46003914]
[1741972105628,1.03154,1938.8,1938.7,0.00773914]
[1741972106223,2.34474,1938.8,1938.7,0.00773914]
[1741972106425,5.55254,1938.8,1938.7,0.00773914]
[1741972106633,1.03175,1938.4,1938.3,8.2793]
[1741972106932,1.03175,1938.4,1938.3,3.2078]
[1741972107632,2.34495,1938.4,1938.3,3.2078]
[1741972108329,1.03175,1938.4,1938.3,4.23961]
[1741972108525,0.00773914,1938.5,1938.4,1.03175]
[1741972108729,0.00773914,1938.5,1938.4,2.42295]
[1741972109430,0.6855,1938.9,1938.5,2.57917]
[1741972109629,2.1164,1939.0,1938.7,3.2078]
[1741972109829,1.03149,1938.9,1938.8,2.42271]
[1741972110019,1.03149,1938.9,1938.8,1.3912]
[1741972110223,2.48119,1938.9,1938.8,1.3912]
[1741972112536,1.03165,1938.6,1938.5,3.2078]
[1741972112833,1.4497,1938.9,1938.5,3.2078]
[1741972113027,1.03159,1938.8,1938.7,3.2078]
[1741972113726,1.03159,1938.8,1938.7,4.23939]
[1741972113927,1.03159,1938.8,1938.7,3.2078]
[1741972114738,1.03165,1938.6,1938.5,4.5256]
[1741972115034,1.03164,1938.7,1938.6,1.03165]
[1741972115235,2.38154,1938.7,1938.6,1.03165]
[1741972115935,1.3499,1938.7,1938.5,4.5256]
[1741972116129,2.38154,1938.7,1938.6,1.03165]
[1741972116335,2.38154,1938.7,1938.5,4.5256]
[1741972116336,1.03165,1938.6,1938.5,4.5256]
[1741972116535,2.38155,1938.6,1938.5,4.5256]
[1741972117037,2.57873,1938.9,1938.5,4.5256]
[1741972117333,1.03165,1938.6,1938.5,5.55727]
[1741972117531,1.3499,1938.8,1938.5,4.5256]
[1741972117739,1.03154,1938.8,1938.7,4.23938]
[1741972117941,1.03154,1938.8,1938.7,3.2078]
[1741972118627,1.03159,1938.7,1938.6,1.03163]
[1741972118831,1.03165,1938.6,1938.5,4.5256]
[1741972119740,1.03175,1938.4,1938.3,3.9348]
[1741972119934,1.03175,1938.4,1938.3,3.2078]
[1741972120535,1.03181,1938.3,1938.2,0.00773914]
[1741972122130,1.03181,1938.3,1938.2,1.03959914]
[1741972122837,1.03181,1938.3,1938.2,0.00773914]
[1741972123528,1.03181,1938.3,1938.2,1.33303914]
[1741972123832,1.03181,1938.3,1938.2,0.00773914]
[1741972124336,4.77181,1938.3,1938.2,0.00773914]
[1741972124539,1.03202,1937.9,1937.8,1.3253]
[1741972127242,1.03223,1937.5,1937.4,4.24007]
[1741972127431,1.03218,1937.6,1937.5,1.3315]
[1741972128035,2.45958,1937.6,1937.5,1.3315]
[1741972129546,1.03223,1937.5,1937.4,3.21553914]
[1741972129838,2.45513,1937.5,1937.4,0.00773914]
[1741972130343,1.03223,1937.5,1937.4,1.04002914]
[1741972130940,3.18189,1937.7,1937.6,1.03218]
[1741972131243,1.03223,1937.6,1937.5,1.4522]
[1741972131844,2.45513,1937.6,1937.5,1.4522]
[1741972134038,1.75896,1937.7,1937.6,1.03218]
[1741972134246,1.03216,1937.7,1937.6,1.03218]
[1741972134636,2.0741,1937.8,1937.5,1.4522]
[1741972134840,1.03218,1937.6,1937.5,2.48439]
[1741972135046,1.03218,1937.6,1937.5,1.4522]
[1741972137649,1.03218,1937.6,1937.5,2.48443]
[1741972137948,1.03218,1937.6,1937.4,3.21553914]
[1741972137949,1.03223,1937.5,1937.4,3.21553914]
[1741972138147,1.73193,1937.5,1937.4,0.00773914]
[1741972139045,1.73193,1937.5,1937.4,4.24782914]
[1741972139748,1.03223,1937.5,1937.4,4.24782914]
[1741972139947,2.48042,1937.6,1937.5,1.03223]
[1741972140348,2.48038,1937.6,1937.5,1.3409]
[1741972140545,1.03218,1937.6,1937.5,1.3409]
[1741972141254,2.35387,1937.7,1937.6,1.03218]
[1741972141448,1.03218,1937.6,1937.5,2.37308]
[1741972141653,1.3217,1937.7,1937.5,1.3409]
[1741972141854,1.03218,1937.6,1937.5,2.37309]
[1741972142050,1.03218,1937.6,1937.5,1.3409]
[1741972143144,1.03218,1937.6,1937.5,2.37313]
[1741972143360,0.00773914,1938.0,1937.5,3.9214]
[1741972143565,0.00773914,1938.0,1937.9,4.23982]
[1741972143966,1.03970914,1938.0,1937.9,4.23982]
[1741972144170,1.03970914,1938.0,1937.9,1.3528]
[1741972146571,1.03207,1937.8,1937.7,3.2078]
[1741972146773,1.03207,1937.8,1937.7,5.58843]
[1741972147675,1.03207,1937.8,1937.7,4.5563]
[1741972147882,2.41477,1937.8,1937.7,5.58843]
[1741972148474,0.00773914,1938.0,1937.7,4.5563]
[1741972148673,0.00773914,1938.0,1937.9,4.23982]
[1741972149072,1.03970914,1938.0,1937.9,4.23982]
[1741972149376,1.03970914,1938.0,1937.9,5.56552]
[1741972149769,0.00773914,1938.0,1937.9,5.56552]
[1741972150074,1.03970914,1938.0,1937.9,5.56552]
[1741972150275,0.00773914,1938.0,1937.9,5.56552]
[1741972151667,1.03970914,1938.0,1937.9,5.56552]
[1741972152080,1.03970914,1938.0,1937.9,4.5335]
[1741972152780,1.03207,1937.8,1937.7,3.2078]
[1741972152982,1.03207,1937.8,1937.7,4.6544]
[1741972153273,1.03218,1937.6,1937.5,3.2078]
[1741972153465,1.03218,1937.6,1937.5,4.6544]
[1741972154072,2.37858,1937.6,1937.5,4.6544]
[1741972154279,2.37858,1937.6,1937.5,5.68663]
[1741972154680,2.37858,1937.6,1937.5,4.6544]
[1741972155380,3.739,1937.9,1937.5,4.6544]
[1741972155576,1.03214,1937.7,1937.6,1.03218]
[1741972155775,3.31256914,1938.0,1937.5,7.23498]
[1741972155978,1.03208,1937.8,1937.7,3.2078]
[1741972156278,1.03208,1937.8,1937.7,1.333]
[1741972157173,1.03218,1937.6,1937.5,3.2078]
[1741972157377,1.03218,1937.6,1937.5,4.5256]
[1741972157779,1.03218,1937.6,1937.5,5.55783]
[1741972158082,1.03218,1937.6,1937.5,4.5256]
[1741972161177,1.03218,1937.6,1937.5,5.55783]
[1741972161980,1.03218,1937.6,1937.5,4.5256]
[1741972162378,1.03218,1937.6,1937.5,5.55783]
[1741972162684,1.03218,1937.6,1937.5,4.5256]
[1741972163178,1.03223,1937.5,1937.4,29.98343914]
[1741972163383,2.47903,1937.5,1937.4,31.84253914]
[1741972163583,2.47903,1937.5,1937.4,0.00773914]
[1741972163783,2.58073,1937.4,1936.9,3.2078]
[1741972163988,1.03245,1937.1,1937.0,1.3487]
[1741972164191,1.0325,1937.0,1936.9,3.2078]
[1741972164390,3.1375,1937.0,1936.9,3.2078]
[1741972165087,3.1375,1937.0,1936.9,4.5565]
[1741972167679,2.105,1937.0,1936.8,0.00773914]
[1741972167883,1.03255,1936.9,1936.8,0.00773914]
[1741972168084,2.44425,1936.9,1936.8,0.00773914]
[1741972168486,2.44425,1936.9,1936.6,1.4195]
[1741972168487,1.03266,1936.7,1936.6,1.4195]
[1741972169391,1.03266,1936.7,1936.4,1.3857]
[1741972169392,1.03277,1936.5,1936.4,1.3857]
[1741972169695,1.03277,1936.5,1936.4,2.41852]
[1741972169890,0.00773914,1936.6,1936.5,1.03277]
[1741972170094,0.00773914,1936.6,1936.5,8.67887]
[1741972170793,0.00773914,1936.6,1936.5,11.17887]
[1741972170988,1.3582,1937.0,1936.6,1.03271]
[1741972171293,1.0326,1936.9,1936.8,1.03259]
[1741972171497,2.39867,1937.1,1937.0,1.0325]
[1741972171693,1.03246,1937.1,1937.0,1.03246]
[1741972172198,2.58881914,1937.2,1936.9,3.2078]
[1741972172393,1.03261,1936.8,1936.7,3.9239]
[1741972172992,1.03261,1936.8,1936.7,3.2078]
[1741972173296,1.03271,1936.6,1936.5,4.6232]
[1741972173492,2.5816,1936.8,1936.5,4.6232]
[1741972173493,1.03269,1936.7,1936.6,1.03268]
[1741972173694,2.35071,1936.8,1936.7,1.03266]
[1741972173891,1.03261,1936.8,1936.7,4.24046]
[1741972174092,1.03261,1936.8,1936.7,4.24043]
[1741972174895,1.03261,1936.8,1936.7,3.2078]
[1741972175092,2.35071,1936.8,1936.7,3.2078]
[1741972175292,2.35071,1936.8,1936.7,4.5578]
[1741972175595,2.35071,1936.8,1936.7,5.59046]
[1741972176192,2.35071,1936.8,1936.7,4.5578]
[1741972176494,2.35071,1936.8,1936.7,5.59046]
[1741972177394,2.35071,1936.8,1936.7,4.5578]
[1741972177899,1.03271,1936.6,1936.5,3.2078]
[1741972178098,1.03271,1936.6,1936.5,4.6214]
[1741972178696,1.3181,1936.8,1936.3,4.24837914]
[1741972178999,1.03277,1936.5,1936.4,1.3751]
[1741972179396,2.36037,1936.5,1936.4,1.3751]
[1741972179897,3.2078,1936.9,1936.4,1.3751]
[1741972180094,3.90897,1937.0,1936.5,5.78963]
[1741972180399,1.03266,1936.7,1936.6,2.40778]
[1741972181301,2.36022,1936.8,1936.7,1.03266]
[1741972181599,1.03256,1936.9,1936.8,1.03261]
[1741972181901,2.43076,1936.9,1936.8,1.03261]
[1741972182494,1.03261,1936.8,1936.7,5.58703]
[1741972182695,2.43081,1936.8,1936.7,4.5544]
[1741972184202,2.43081,1936.8,1936.7,3.2078]
[1741972184698,1.03277,1936.5,1936.4,0.6678]
[1741972184902,1.03277,1936.5,1936.4,1.4313]
[1741972185098,1.03282,1936.4,1936.3,3.21553914]
[1741972185406,2.39572,1936.4,1936.3,0.00773914]
[1741972185603,6.13472,1936.4,1936.3,0.00773914]
[1741972185897,6.13472,1936.4,1936.1,1.4313]
[1741972185898,2.58225,1936.3,1935.8,3.2078]
[1741972186206,1.03303,1936.0,1935.9,1.4313]
[1741972186407,1.03303,1936.0,1935.9,2.46439]
[1741972186698,1.03303,1936.0,1935.9,1.4313]
[1741972186897,1.03303,1936.0,1935.9,2.46439]
[1741972187097,1.04076914,1936.1,1936.0,1.03302]
[1741972187297,0.00773914,1936.1,1936.0,1.03303]
[1741972187507,0.00773914,1936.1,1936.0,4.24083]
[1741972187807,1.69191,1936.6,1936.2,2.58226]
[1741972188001,2.0004,1936.7,1936.5,3.2078]
[1741972188305,2.37156,1936.7,1936.6,1.4309]
[1741972189897,1.03271,1936.6,1936.5,3.2078]
[1741972190102,2.37161,1936.6,1936.5,3.2078]
[1741972190613,1.03277,1936.5,1936.4,1.4309]
[1741972190904,2.46677,1936.5,1936.4,1.4309]
[1741972191990,1.03282,1936.4,1936.3,3.2078]
[1741972192195,3.86382,1936.4,1936.3,3.2078]
[1741972193102,3.86382,1936.4,1936.3,4.24067]
[1741972196510,3.86382,1936.4,1936.3,3.2078]
[1741972198203,2.831,1936.4,1936.1,1.3162]
[1741972198405,1.03303,1936.0,1935.9,3.2078]
[1741972198605,1.03303,1936.0,1935.9,4.524]
[1741972199797,1.03303,1936.0,1935.9,5.55709]
[1741972199997,1.03302,1936.1,1936.0,1.03298]
[1741972200200,1.03302,1936.1,1936.0,2.44168]
[1741972200409,1.03298,1936.1,1936.0,2.44168]
[1741972200612,2.46816,1936.2,1936.1,1.03298]
[1741972200810,1.4352,1936.2,1936.1,4.24078]
[1741972201108,2.46813,1936.2,1936.1,1.03298]
[1741972201406,2.46813,1936.2,1936.1,3.2078]
[1741972201602,2.46813,1936.2,1936.1,4.24078]
[1741972202108,2.46813,1936.2,1936.1,3.2078]
[1741972204510,1.03298,1936.1,1936.0,1.4087]
[1741972204702,1.03309,1936.0,1935.9,1.03306]
[1741972205103,1.03309,1936.0,1935.9,1.74886]
[1741972205506,2.47083,1936.1,1936.0,1.03303]
[1741972205700,1.03303,1936.1,1936.0,1.03303]
[1741972205900,1.4378,1936.2,1935.9,0.7158]
[1741972206111,1.03303,1936.1,1936.0,1.03299]
[1741972206508,1.03303,1936.1,1935.9,0.7158]
[1741972206509,4.02023,1936.2,1935.9,0.7158]
[1741972206815,1.033,1936.1,1936.0,1.03298]
[1741972207117,1.03303,1936.0,1935.9,1.74881]
[1741972207816,1.03303,1936.0,1935.9,0.7158]
[1741972208315,1.03303,1936.0,1935.9,1.74889]
[1741972211914,1.03309,1935.9,1935.8,4.24865914]
[1741972212717,2.39839,1935.9,1935.8,4.24865914]
[1741972213015,2.39839,1935.9,1935.8,3.21553914]
[1741972213313,2.39839,1935.9,1935.8,0.00773914]
[1741972213517,1.03325,1935.6,1935.5,1.73985]
[1741972214212,0.7094,1935.9,1935.6,1.03325]
[1741972214514,2.39847,1935.8,1935.7,1.03319]
[1741972214712,1.03319,1935.7,1935.6,4.24875914]
[1741972215211,2.39848,1935.8,1935.7,1.03319]
[1741972215418,2.39848,1935.8,1935.7,2.37069]
[1741972216516,2.39848,1935.8,1935.7,1.3375]
[1741972217619,2.39848,1935.8,1935.7,2.37069]
[1741972217817,2.39848,1935.8,1935.7,1.3375]
[1741972218605,1.3653,1935.8,1935.7,2.37069]
[1741972218821,2.39844,1935.8,1935.7,2.37069]
[1741972219812,2.39844,1935.8,1935.7,1.3375]
[1741972220116,1.03319,1935.7,1935.6,3.21553914]
[1741972220421,2.44299,1935.7,1935.6,3.21553914]
[1741972221013,2.44299,1935.7,1935.6,4.55243914]
[1741972221811,2.44299,1935.7,1935.6,3.21553914]
[1741972222008,2.44299,1935.7,1935.6,4.24878914]
[1741972222209,2.44299,1935.7,1935.6,3.21553914]
[1741972222413,2.44299,1935.7,1935.6,0.00773914]
[1741972222609,1.03335,1935.4,1935.3,28.643]
[1741972222808,1.03341,1935.3,1935.2,4.24125]
[1741972223223,1.3861,1935.4,1935.2,3.2078]
[1741972223419,2.41949,1935.4,1935.3,1.03341]
[1741972223923,1.03341,1935.3,1935.2,4.24896914]
[1741972224319,1.03341,1935.3,1935.2,3.21553914]
[1741972224620,1.03341,1935.3,1935.2,4.24899914]
[1741972224816,1.03341,1935.3,1935.2,3.21553914]
[1741972227020,1.03341,1935.3,1935.2,0.00773914]
[1741972228028,7.00741,1935.3,1935.2,0.00773914]
[1741972228530,1.03357,1935.0,1934.9,3.2078]
[1741972229417,2.43537,1935.0,1934.9,3.2078]
[1741972232027,1.4018,1935.0,1934.8,0.00515941]
[1741972232230,2.35242,1934.9,1934.8,0.00515941]
[1741972233923,1.03394,1934.3,1934.2,4.24176]
[1741972234130,1.03394,1934.3,1934.2,4.93576]
[1741972235035,1.03394,1934.3,1934.2,4.93579]
[1741972235227,2.42934,1934.3,1934.2,4.93579]
[1741972235433,2.42934,1934.3,1934.2,6.27389]
[1741972235628,0.00773914,1934.4,1934.3,1.03394]
[1741972235828,0.00773914,1934.4,1934.3,2.37204]
[1741972236938,1.04162914,1934.4,1934.3,2.37204]
[1741972237141,1.04162914,1934.4,1934.3,1.3381]
[1741972237640,1.04162914,1934.4,1934.3,2.37204]
[1741972237928,0.00773914,1934.4,1934.3,2.37204]
[1741972238334,1.04162914,1934.4,1934.3,2.37204]
[1741972239637,1.04162914,1934.4,1934.3,1.3381]
[1741972240734,1.04162914,1934.4,1934.3,2.37204]
[1741972241740,0.00773914,1934.4,1934.3,2.37204]
[1741972242139,1.03372,1934.8,1934.7,1.0337]
[1741972242441,1.03372,1934.8,1934.7,3.2078]
[1741972242735,2.48562,1934.8,1934.7,3.2078]
[1741972242939,1.03372,1934.8,1934.7,4.24153]
[1741972243640,1.03372,1934.8,1934.7,5.67873]
[1741972246036,1.03372,1934.8,1934.7,4.645]
[1741972246941,1.03372,1934.8,1934.7,1.4372]
[1741972249329,1.03372,1934.8,1934.7,2.47093]
[1741972249535,2.49329914,1934.9,1934.8,1.03367]
[1741972249730,2.49329914,1934.9,1934.8,1.4201]
[1741972250141,2.49329914,1934.9,1934.8,2.45377]
[1741972250744,5.974,1935.0,1934.9,1.03362]
[1741972250936,3.2078,1935.8,1935.0,2.58383]
[1741972250937,1.4481,1935.4,1935.0,2.58383]
[1741972251138,1.03345,1935.3,1935.2,1.03343]
[1741972251332,2.48151,1935.4,1935.3,1.03341]
[1741972251538,1.3552,1935.7,1935.4,1.0333]
[1741972251737,1.3552,1935.7,1935.5,2.45409]
[1741972251738,1.03325,1935.6,1935.5,2.45409]
[1741972252343,2.76483914,1935.7,1935.5,1.4208]
[1741972252544,3.79802914,1935.7,1935.6,1.4208]
[1741972252745,1.0333,1935.5,1935.4,3.2078]
[1741972252955,1.0333,1935.5,1935.4,4.6286]
[1741972253243,1.0333,1935.5,1935.4,1.4208]
[1741972254941,1.03341,1935.3,1935.2,3.2078]
[1741972255549,1.03341,1935.3,1935.2,4.24126]
[1741972255944,1.03339,1935.4,1935.3,1.03341]
[1741972256147,1.03339,1935.4,1935.3,2.45481]
[1741972256348,1.03339,1935.4,1935.3,1.4214]
[1741972258455,1.03351,1935.1,1935.0,4.24135]
[1741972258746,1.03351,1935.1,1935.0,4.6462]
[1741972259155,1.03362,1934.9,1934.8,28.669]
[1741972259346,1.03362,1934.9,1934.6,0.00773914]
[1741972259347,1.03373,1934.7,1934.6,0.00773914]
[1741972259551,1.03369,1934.8,1934.7,1.03366]
[1741972259753,1.03365,1934.9,1934.8,1.03362]
[1741972260253,1.03361,1935.0,1934.9,1.03358]
[1741972260549,1.03361,1935.0,1934.9,3.8698]
[1741972260854,2.48141,1935.0,1934.9,4.5906]
[1741972261255,2.48141,1935.0,1934.9,5.62422]
[1741972261455,2.42153,1935.1,1935.0,1.03357]
[1741972261655,2.42153,1935.1,1935.0,2.41637]
[1741972262055,2.42153,1935.1,1935.0,1.3828]
[1741972262351,2.42153,1935.1,1934.9,3.2078]
[1741972262352,1.03357,1935.0,1934.9,3.2078]
[1741972262557,2.48137,1935.0,1934.9,3.2078]
[1741972264760,1.03362,1934.9,1934.8,1.3828]
[1741972264949,2.44492,1934.9,1934.8,1.3828]
[1741972265953,1.03373,1934.7,1934.6,3.21553914]
[1741972266657,1.72643,1934.7,1934.6,3.21553914]
[1741972266861,2.38443,1934.7,1934.6,3.21553914]
[1741972267250,2.38443,1934.7,1934.6,4.53593914]
[1741972267659,1.72643,1934.7,1934.6,5.56971914]
[1741972268151,1.72643,1934.7,1934.6,4.53593914]
[1741972268352,1.72643,1934.7,1934.6,3.21553914]
[1741972268557,1.03383,1934.5,1934.4,1.3204]
[1741972268760,1.03383,1934.5,1934.4,2.35429]
[1741972268944,1.03383,1934.5,1934.4,5.56209]
[1741972269147,1.3272,1934.6,1934.4,5.56209]
[1741972269148,2.36102,1934.6,1934.5,1.03383]
[1741972269349,1.03382,1934.6,1934.5,3.01623]
[1741972269852,2.39242,1934.6,1934.5,3.01623]
[1741972270159,1.03382,1934.6,1934.5,3.01623]
[1741972271060,2.39242,1934.6,1934.5,3.01623]
[1741972271558,2.39242,1934.6,1934.5,1.9824]
[1741972271857,2.39242,1934.6,1934.5,1.3204]
[1741972274452,1.03383,1934.5,1934.4,0.00773914]
[1741972274664,3.11263,1934.5,1934.4,0.00773914]
[1741972275453,5.8118,1934.5,1934.2,3.2078]
[1741972275649,1.03394,1934.3,1934.2,1.366]
[1741972275849,1.03394,1934.3,1934.0,32.5827]
[1741972275850,1.03415,1933.9,1933.8,3.9317]
[1741972276053,1.03415,1933.9,1933.8,4.96591]
[1741972276258,1.03415,1933.9,1933.8,3.9317]
[1741972276459,1.03415,1933.9,1933.8,5.2977]
[1741972276856,1.03415,1933.9,1933.8,6.33191]
[1741972277759,1.03415,1933.9,1933.8,5.2977]
[1741972277959,1.03415,1933.9,1933.8,6.33191]
[1741972278357,1.03415,1933.9,1933.8,5.2977]
[1741972278866,1.03415,1933.9,1933.8,6.33191]
[1741972279064,1.03415,1934.0,1933.9,1.03415]
[1741972279255,1.03415,1934.0,1933.9,2.42725]
[1741972279458,1.03415,1934.0,1933.9,1.3931]
[1741972280573,2.46685,1934.0,1933.9,1.3931]
[1741972280863,1.03415,1934.0,1933.9,2.42725]
[1741972281065,1.03415,1934.0,1933.9,1.3931]
[1741972281461,1.03415,1934.0,1933.9,2.42725]
[1741972281857,0.7271,1934.4,1934.0,2.58526]
[1741972282057,1.03399,1934.2,1934.1,5.64622]
[1741972282563,2.122,1934.4,1934.1,4.6122]
[1741972282766,1.03397,1934.3,1934.2,3.79034]
[1741972283470,1.03393,1934.4,1934.3,1.0339]
[1741972283765,1.03393,1934.4,1934.3,1.4044]
[1741972283973,2.42883,1934.4,1934.3,1.4044]
[1741972286959,1.03393,1934.4,1934.3,1.4044]
[1741972287165,1.03393,1934.4,1934.3,2.0778]
[1741972287569,1.03393,1934.4,1934.3,5.2856]
[1741972287872,0.67983914,1934.7,1934.3,5.2856]
[1741972288073,1.03378,1934.6,1934.5,3.2078]
[1741972288378,1.03383,1934.5,1934.4,1.3653]
[1741972288872,1.03383,1934.5,1934.4,2.39919]
[1741972290169,1.03383,1934.6,1934.5,1.03379]
[1741972290370,1.03383,1934.6,1934.5,4.24159]
[1741972291070,0.00773914,1934.7,1934.5,3.2078]
[1741972291266,0.00773914,1934.7,1934.6,1.74218]
[1741972291570,1.04146914,1934.7,1934.6,1.74218]
[1741972293166,1.04146914,1934.7,1934.6,0.7084]
[1741972293568,1.03378,1934.6,1934.5,3.2078]
[1741972293770,2.42458,1934.6,1934.5,4.24163]
[1741972294379,1.04148914,1934.7,1934.6,1.03378]
[1741972296066,1.03378,1934.6,1934.5,4.24158]
[1741972296270,1.03378,1934.6,1934.5,3.2078]
[1741972296477,2.42458,1934.6,1934.5,3.2078]
[1741972299173,1.03389,1934.5,1934.4,1.03388]
[1741972301074,1.04151914,1934.7,1934.6,1.03378]
[1741972301280,0.00773914,1934.7,1934.6,4.24158]
[1741972302178,1.04146914,1934.7,1934.6,4.24158]
[1741972302378,0.00773914,1934.7,1934.6,4.24158]
[1741972303383,1.04146914,1934.7,1934.6,4.24158]
[1741972303584,1.04146914,1934.7,1934.6,3.2078]
[1741972304176,1.72476914,1934.7,1934.6,3.2078]
[1741972304484,3.17796914,1934.7,1934.6,3.2078]
[1741972304687,1.04146914,1934.7,1934.6,4.24158]
[1741972305685,2.49466914,1934.7,1934.6,4.24158]
[1741972306387,1.04146914,1934.7,1934.6,4.24158]
[1741972306988,0.00773914,1934.7,1934.6,4.24158]
[1741972307486,0.00773914,1934.7,1934.6,5.62218]
[1741972308079,1.04146914,1934.7,1934.6,5.62218]
[1741972308484,0.00773914,1934.7,1934.6,5.62218]
[1741972308686,1.04146914,1934.7,1934.6,4.5884]
[1741972308882,1.04146914,1934.7,1934.6,3.2078]
[1741972309077,1.03383,1934.5,1934.4,4.5667]
[1741972309682,2.43803,1934.5,1934.4,3.2078]
[1741972311188,1.03394,1934.3,1934.2,3.2078]
[1741972312678,1.03394,1934.3,1934.2,5.66649]
[1741972312883,1.03394,1934.3,1934.2,4.6325]
[1741972313286,1.03394,1934.3,1934.2,5.66649]
[1741972313781,2.43809,1934.4,1934.3,1.03394]
[1741972313977,2.43809,1934.4,1934.3,2.45864]
[1741972314391,2.43809,1934.4,1934.3,1.4247]
[1741972316195,2.43809,1934.4,1934.3,2.45864]
[1741972316592,2.43809,1934.4,1934.3,3.17094]
[1741972316892,2.43809,1934.4,1934.3,2.137]
[1741972317199,2.43809,1934.4,1934.3,1.4247]